Cogmind - Beta 12 @@@ ROGUE MODE // 2023.03.12 @ 06:55:21 Player: Howard Result: Self-destructed Performance ------------- Evolutions (4) 2000 Regions Visited (15) 3000 Robots Destroyed (136) 680 Value Destroyed (5747) 5747 Prototype IDs (17) 340 Alien Tech Used (0) 0 Bonus (4957) 4957 TOTAL SCORE: 16724 Bonus ------- High Alert Combat Kills 1786 Follower Combat Kills 1242 Entered Garrisons 600 Used RIF Installer 1500 Met Data Miner 300 Friendly Fire -471 Cogmind --------- Core Integrity 569/850 Matter 280/300 Energy 58/150 System Corruption 7% Temperature Cool (0) Movement Walking (90) Location -6/Garrison Parts ------- > --- POWER (1) -------- Micro Fission Core > --- PROPULSION (3) --- Improved VSS Leg Improved VSS Leg Improved VSS Leg > --- UTILITY (8) ------ Improved Heat Sink Improved Cooling System Improved Signal Interpreter Graphene Brace Relay Coupler [Grunt] (27) > --- WEAPON (3) ------- Improved EM Pulse Cannon Heavy Gauss Cannon Heavy Gauss Cannon > --- INVENTORY (5) ---- Relay Coupler [NC] (37) Relay Coupler [Proto] (15) Improved Remote Datajack Improved Plasma Cutter Lance Peak State ------------ > --- POWER ------------ Antimatter Reactor > --- PROPULSION ------- Light Treads Medium Treads Improved Medium Treads > --- UTILITY ---------- Advanced Heat Sink Medium Storage Unit Advanced Visual Processing Unit Improved Signal Interpreter Advanced Targeting Computer Phase Shifter Hardened Medium Armor Plating Improved Medium Armor Plating > --- WEAPON ----------- Enhanced Autogun Heavy Flak Cannon Enhanced Gauss Cannon > --- INVENTORY -------- Relay Coupler [Behemoth] Relay Coupler [Proto] Improved EM Pulse Cannon Disruptor Cannon Coil Gun Improved Remote Datajack Improved Plasma Cutter Molecular Deconstructor Lance [Rating: 65] Favorites ----------- Power Micro Fission Core Engine Light Angular Momentum Engine Power Core Micro Fission Core Reactor Antimatter Reactor Propulsion Armored Treads Treads Armored Treads Leg Aluminum Leg Wheel Wheel Hover Unit Gravmag System Flight Unit Flight Unit Utility Medium Storage Unit Device Advanced Heat Sink Storage Medium Storage Unit Processor Advanced Visual Processing Unit Hackware Relay Coupler [Grunt] Protection Heavy Armor Plating Weapon Enhanced Gauss Cannon Energy Gun Shock Rifle Energy Cannon Improved EM Pulse Cannon Ballistic Gun Flak Gun Ballistic Cannon Enhanced Gauss Cannon Launcher Rocket Launcher Special Weapon Improved Remote Datajack Piercing Weapon Makeshift Spear Build | -11 -10 -10 -10 -9 -8 -8 -7 -7 -7 -7 -7 -7 -6 -6 -6 ------- Run | Jun Mat Min Exi Min Mat Gar Fac Gar Fac Low Low Dat Pro Fac Gar Slots Evolved 8 | . . . . . 4 . 2 . . . . . . 2 . Power . | . . . . . . . . . . . . . . . . Propulsion 1 | . . . . . . . . . . . . . . 1 . Utility 6 | . . . . . 3 . 2 . . . . . . 1 . Weapon 1 | . . . . . 1 . . . . . . . . . . Parts Attached 110 | 6 1 2 . . 9 28 11 3 . 4 2 . 1 8 35 Power 11 | 1 . 1 . . . 4 . . . . . . . 1 4 Engine 6 | 1 . 1 . . . 1 . . . . . . . 1 2 Core 4 | . . . . . . 3 . . . . . . . . 1 Reactor 1 | . . . . . . . . . . . . . . . 1 Propulsion 20 | 2 . . . . 2 7 2 . . . 1 . . 1 5 Treads 10 | 1 . . . . 1 2 2 . . . 1 . . 1 2 Leg 4 | . . . . . . 1 . . . . . . . . 3 Wheel 2 | 1 . . . . 1 . . . . . . . . . . Hover 3 | . . . . . . 3 . . . . . . . . . Flight 1 | . . . . . . 1 . . . . . . . . . Utility 29 | 1 1 1 . . 3 3 4 1 . 3 1 . 1 2 8 Device 13 | . . . . . 1 2 2 1 . 1 . . . 1 5 Storage 2 | 1 1 . . . . . . . . . . . . . . Processor 3 | . . . . . 2 . . . . . . . 1 . . Hackware 1 | . . . . . . . . . . . . . . . 1 Protection 10 | . . 1 . . . 1 2 . . 2 1 . . 1 2 Artifact . | . . . . . . . . . . . . . . . . Weapon 50 | 2 . . . . 4 14 5 2 . 1 . . . 4 18 Energy Gun 5 | . . . . . . 3 . . . . . . . . 2 Energy Cannon 6 | . . . . . . 1 1 . . . . . . . 4 Ballistic Gun 19 | 2 . . . . 4 8 2 1 . . . . . 1 1 Ballistic Cannon 11 | . . . . . . . 2 . . 1 . . . 2 6 Launcher 1 | . . . . . . 1 . . . . . . . . . Special Weapon 5 | . . . . . . . . 1 . . . . . 1 3 Impact Weapon . | . . . . . . . . . . . . . . . . Slashing Weapon . | . . . . . . . . . . . . . . . . Piercing Weapon 3 | . . . . . . 1 . . . . . . . . 2 Special Melee Weapon . | . . . . . . . . . . . . . . . . Unidentified Prototypes 2 | . . . . . . . 1 . . . . . . 1 . Corrupted Parts 1 | . . . . . . . . . . . . . . . 1 System Corruption 5 | . . . . . . . . . . . . . . . 5 Parts Lost 46 | . . . . . 4 13 3 1 . 1 3 . 1 1 19 Power 6 | . . . . . 1 2 . . . . . . . 1 2 Propulsion 12 | . . . . . 2 5 . . . . 1 . . . 4 Utility 16 | . . . . . 1 1 1 . . 1 1 . 1 . 10 Weapon 12 | . . . . . . 5 2 1 . . 1 . . . 3 Highest Loss Streak 6 | . . . . . 4 5 2 1 . 1 2 . 1 1 6 To Critical Strikes . | . . . . . . . . . . . . . . . . Average Slot Usage (%) 89 | . 87 92 100 100 77 90 88 87 84 95 88 84 82 86 86 Engine 2 | . 14 14 14 14 6 . . . . . . . . 1 4 Core 4 | . . . . . . 8 7 7 7 7 7 7 7 1 . Treads 12 | . 14 14 14 14 9 4 11 15 15 15 14 15 15 17 15 Wheel 2 | . 14 14 14 14 7 1 . . . . . . . . . Hover 1 | . . . . . . 6 . . . . . . . . . Device 11 | . . . . . 1 8 14 15 15 19 15 15 10 9 14 Storage 8 | . 16 14 14 14 9 9 7 7 7 7 7 7 7 6 5 Processor 13 | . . . . . 8 18 15 15 15 15 15 15 17 20 13 Protection 7 | . . 7 14 14 7 3 6 7 7 7 7 7 7 11 7 Energy Gun 1 | . . . . . . 4 . . . . . . . . 1 Ballistic Gun 10 | . 28 28 28 28 27 21 13 3 . . . . . 2 4 Ballistic Cannon 9 | . . . . . . . 9 15 15 22 19 15 15 13 8 Naked Turns . | . . . . . . . . . . . . . . . . Heaviest Build 63 | 11 16 25 25 25 34 41 60 60 55 61 61 43 43 54 63 Greatest Support 78 | 10 10 10 10 10 40 27 47 40 40 40 48 48 48 78 78 Greatest Overweight (x) 5 | 1 1 2 2 2 3 4 2 1 1 1 2 . . . 5 Average Overweight (x) 1 | . 1 1 2 2 2 1 1 1 1 1 . . . . . Largest Inventory Capacity 10 | 8 10 10 10 10 10 10 10 10 10 10 10 10 10 10 10 Average Capacity 9 | 7 9 10 10 10 10 10 10 10 10 10 10 10 10 10 9 Most Carried 10 | 4 5 10 10 10 10 10 10 10 10 10 9 8 10 10 10 Average Carried 9 | 1 4 7 10 10 8 8 9 9 10 9 8 8 9 9 9 Final Capacity 10 | 8 10 10 10 10 10 10 10 10 10 10 10 10 10 10 5 Final Carried 10 | 4 5 10 10 10 8 10 10 10 10 9 8 8 10 10 5 Class Distribution -------------------- 41% | Mutant 37% | Gunner 5% | Tank 4% | Scavenger-Mutant 4% | Bothacker-Mutant Dominant Class ---------------- Mutant | -10/Materials Mutant | -10/Mines Mutant | -10/Exiles Mutant | -9/Mines Tank | -8/Materials Gunner | -8/Garrison Gunner | -7/Factory Mutant | -7/Garrison Mutant | -7/Factory Gunner | -7/Lower Caves Gunner | -7/Lower Caves Mutant | -7/Data Miner Mutant | -6/Proximity Caves Tank | -6/Factory Bothacker-Mutant | -6/Garrison Resources | -11 -10 -10 -10 -9 -8 -8 -7 -7 -7 -7 -7 -7 -6 -6 -6 ----------- Run | Jun Mat Min Exi Min Mat Gar Fac Gar Fac Low Low Dat Pro Fac Gar Matter Collected 5035 | 220 . 78 . 60 65 1157 677 404 . 418 299 . 181 53 1423 Remotely . | . . . . . . . . . . . . . . . . Salvage Created 4926 | . . . . 119 215 1028 763 437 . 360 252 . 151 143 1458 Parts 226 | . . . . 18 12 47 42 18 . 10 19 . 5 6 49 Haulers Intercepted . | . . . . . . . . . . . . . . . . Recyclers Shooed 2 | . . 1 . . . . . . . . . . . 1 . Parts Field Recycled . | . . . . . . . . . . . . . . . . Retrieved Matter . | . . . . . . . . . . . . . . . . Parts Self-Destructed 44 | . . . . . . . . . . 8 22 . 14 . . Prevented 2 | . . . . . . . . . . . . . 2 . . Kills | -11 -10 -10 -10 -9 -8 -8 -7 -7 -7 -7 -7 -7 -6 -6 -6 ------- Run | Jun Mat Min Exi Min Mat Gar Fac Gar Fac Low Low Dat Pro Fac Gar Combat Hostiles Destroyed 136 | . . . . 7 6 40 15 11 . 8 10 . 4 . 35 Melee 2 | . . . . . . . . . . . . . . . 2 Guns 66 | . . . . 7 6 37 6 2 . . . . . . 8 Cannons 65 | . . . . . . . 9 9 . 8 10 . 4 . 25 AOE 3 | . . . . . . 3 . . . . . . . . . Classes Destroyed 15 | . . . . 2 3 3 2 1 . . 1 . . 1 2 Worker 1 | . . . . 1 . . . . . . . . . . . Recycler 4 | . . . . . . . 3 . . . . . . 1 . Operator 1 | . . . . . . . . . . . . . . 1 . Watcher 1 | . . . . . . . 1 . . . . . . . . Swarmer 43 | . . . . 7 . 9 8 4 . 2 5 . . . 8 Cutter 1 | . . . . . . . . . . . . . . . 1 Grunt 50 | . . . . . 4 11 4 2 . 5 3 . 2 . 19 Brawler 2 | . . . . . . . . 1 . 1 . . . . . Duelist 1 | . . . . . . . . . . . . . . . 1 Sentry 13 | . . . . . 1 2 1 3 . 1 . . . . 5 Specialist 5 | . . . . . . 4 . 1 . . . . . . . Hunter 4 | . . . . . 1 . 1 . . . 1 . 1 . . Programmer 8 | . . . . . . 5 1 . . . . . 1 . 1 Assembled 9 | . . . . . . 9 . . . . . . . . . Thug 1 | . . . . . . . . 1 . . . . . . . Mutant 1 | . . . . . . . . . . . 1 . . . . Best Kill Streak 7 | . . . . 5 6 7 4 4 . 4 4 . 3 2 7 Combat Bots Only 7 | . . . . 4 6 7 4 4 . 4 4 . 3 . 7 Max Kills in Single Turn 2 | . . . . 2 2 2 2 1 . 1 1 . 1 1 1 Gunslinging 1 | . . . . 1 1 1 . . . . . . . . . Exploded 1 | . . . . . . 1 . . . . . . . . . Melee 1 | . . . . . . . . . . . . . . . 1 Uniques/NPCs Destroyed . | . . . . . . . . . . . . . . . . Combat | -11 -10 -10 -10 -9 -8 -8 -7 -7 -7 -7 -7 -7 -6 -6 -6 -------- Run | Jun Mat Min Exi Min Mat Gar Fac Gar Fac Low Low Dat Pro Fac Gar Damage Taken 7566 | . 36 44 . 267 444 1559 650 531 . 401 573 . 267 50 2744 Core 760 | . . 22 . 35 . 288 25 39 . 38 32 . . . 281 Absorbed by Shields 59 | . . . . . . 21 . . . 38 . . . . . Core Remaining (%) 76 | 100 . . . 77 . 47 . . . . . . 80 . . Volleys Fired 322 | . . 2 . 15 7 85 36 28 . 16 24 . 9 5 95 Largest 3 | . . 2 . 2 3 3 3 3 . 3 3 . 2 3 3 Hottest 166 | . . 40 . 40 84 150 151 151 . 166 166 . 105 130 163 Shots Fired 779 | . . 4 . 30 21 219 90 61 . 48 53 . 17 14 222 Gun 416 | . . 4 . 30 21 217 41 14 . . . . . 4 85 Cannon 355 | . . . . . . . 49 46 . 48 53 . 17 10 132 Launcher 2 | . . . . . . 2 . . . . . . . . . Special 6 | . . . . . . . . 1 . . . . . . 5 Kinetic 678 | . . 4 . 30 21 174 88 60 . 48 53 . 17 14 169 Thermal 23 | . . . . . . . . . . . . . . . 23 Explosive 2 | . . . . . . 2 . . . . . . . . . Electromagnetic 73 | . . . . . . 43 2 . . . . . . . 28 Robot Hit Streak 15 | . . 3 . 8 10 15 11 6 . 9 10 . 13 13 15 Robot Miss Streak 11 | . . 1 . 3 4 11 9 2 . 4 4 . 2 3 5 Penetration Max 1 | . . . . . . 1 1 . . . . . . . 1 Secondary Targets 12 | . . . . 5 1 5 1 . . . . . . . . Max Gunslinging Chain 1 | . . . . 1 1 1 1 . . . . . . . . Shots Hit Robots 521 | . . 3 . 21 20 162 52 32 . 23 26 . 13 11 158 Core Hits 368 | . . 1 . 9 33 142 32 13 . 12 11 . 7 4 104 Critical Kills 12 | . . . . 1 . . 3 2 . 4 1 . . . 1 Critical Parts Destroyed 8 | . . . . . . 1 1 4 . . 2 . . . . Critical Strikes 48 | . . . . 1 . 1 6 11 . 6 7 . 4 . 12 Destroy 20 | . . . . 1 . 1 4 6 . 4 3 . . . 1 Blast 26 | . . . . . . . 2 5 . 2 4 . 4 . 9 Corrupt 2 | . . . . . . . . . . . . . . . 2 Melee Attacks 24 | . . . . . . 15 . . . . . . . . 9 Impact . | . . . . . . . . . . . . . . . . Slashing . | . . . . . . . . . . . . . . . . Piercing 24 | . . . . . . 15 . . . . . . . . 9 Sneak Attacks . | . . . . . . . . . . . . . . . . Combat Hostiles . | . . . . . . . . . . . . . . . . Follow-up Attacks . | . . . . . . . . . . . . . . . . Damage Inflicted 12424 | . . 24 . 217 369 3112 1376 1014 . 630 762 . 510 282 4128 Guns 5224 | . . 24 . 217 369 2738 600 222 . . . . . 48 1006 Cannons 6641 | . . . . . . . 776 792 . 630 762 . 510 234 2937 Explosions 374 | . . . . . . 374 . . . . . . . . . Melee 162 | . . . . . . . . . . . . . . . 162 Ramming . | . . . . . . . . . . . . . . . . Kinetic 10781 | . . 24 . 217 369 2360 1346 1014 . 630 762 . 510 282 3267 Thermal 278 | . . . . . . 40 . . . . . . . . 238 Explosive 334 | . . . . . . 334 . . . . . . . . . Electromagnetic 869 | . . . . . . 378 30 . . . . . . . 461 Impact . | . . . . . . . . . . . . . . . . Slashing . | . . . . . . . . . . . . . . . . Piercing 162 | . . . . . . . . . . . . . . . 162 Highest Corruption 7 | . . . . . . 5 . . . . . . . . 7 Average Corruption 4 | . . . . . . 3 . . . . . . . . 5 Corruption Purged . | . . . . . . . . . . . . . . . . Corruption Blocked . | . . . . . . . . . . . . . . . . Effects 61 | . . . . . . 27 . . . . . . . . 34 Message Errors 13 | . . . . . . 4 . . . . . . . . 9 Matter Fused 16 | . . . . . . 7 . . . . . . . . 9 Heat Flow Errors 7 | . . . . . . 4 . . . . . . . . 3 Energy Discharges 7 | . . . . . . 3 . . . . . . . . 4 Data Loss (minor) 5 | . . . . . . 1 . . . . . . . . 4 Data Loss (major) 4 | . . . . . . 2 . . . . . . . . 2 Misfires 6 | . . . . . . 4 . . . . . . . . 2 Alerts 2 | . . . . . . 2 . . . . . . . . . Weapon Failures 1 | . . . . . . . . . . . . . . . 1 Overload Shots . | . . . . . . . . . . . . . . . . Overflow Damage 148 | . . . . . . 16 75 28 . 21 7 . . . 1 Projectiles 132 | . . . . . . . 75 28 . 21 7 . . . 1 Explosions 16 | . . . . . . 16 . . . . . . . . . Melee . | . . . . . . . . . . . . . . . . Knockbacks 44 | . . . . . . . 6 4 . 4 2 . . 1 27 Impact . | . . . . . . . . . . . . . . . . Kinetic 42 | . . . . . . . 5 4 . 4 2 . . 1 26 Secondary 2 | . . . . . . . 1 . . . . . . . 1 Self-Inflicted Damage 162 | . . . . . . 162 . . . . . . . . . Shots 4 | . . . . . . 4 . . . . . . . . . Rammed . | . . . . . . . . . . . . . . . . Targets Rammed . | . . . . . . . . . . . . . . . . Kicked . | . . . . . . . . . . . . . . . . Crushed . | . . . . . . . . . . . . . . . . Highest Temperature 376 | . . 8 . 16 126 254 376 298 . 285 233 . 6 32 321 Average Temperature 93 | . . 6 . 6 66 75 129 99 . 122 80 . 3 24 99 Received Heat Transfer 1758 | . . . . . 162 252 90 114 . 108 54 . 99 12 867 Effects 8 | . . . . . . . 3 . . 3 . . . . 2 Energy Bleed 2 | . . . . . . . 2 . . . . . . . . Interference 5 | . . . . . . . . . . 3 . . . . 2 Short Circuit 1 | . . . . . . . 1 . . . . . . . . Siege Activations . | . . . . . . . . . . . . . . . . Robots Corrupted . | . . . . . . . . . . . . . . . . Combat Hostiles . | . . . . . . . . . . . . . . . . Parts Fried 1 | . . . . . . . . . . . . . . . 1 Impact Corruptions . | . . . . . . . . . . . . . . . . Robots Melted . | . . . . . . . . . . . . . . . . Combat Hostiles . | . . . . . . . . . . . . . . . . Parts Melted . | . . . . . . . . . . . . . . . . Heat Transferred 531 | . . . . . . 50 . . . . . . . . 481 Parts Sabotaged . | . . . . . . . . . . . . . . . . Parts Stolen . | . . . . . . . . . . . . . . . . Parts Stripped . | . . . . . . . . . . . . . . . . Power Chain Reactions 1 | . . . . . . 1 . . . . . . . . . Missiles Intercepted . | . . . . . . . . . . . . . . . . Alert | -11 -10 -10 -10 -9 -8 -8 -7 -7 -7 -7 -7 -7 -6 -6 -6 ------- Run | Jun Mat Min Exi Min Mat Gar Fac Gar Fac Low Low Dat Pro Fac Gar Peak Influence 1524 | . . . . 165 149 1477 1005 1524 800 . . . . 284 1363 Initial 800 | . . . . . . 99 774 703 800 . . . . 173 198 Average 715 | . . . . 110 52 765 805 1207 800 . . . . 249 880 Maximum Alert Level 4 | . . . . . . 4 3 4 3 . . . . 1 4 Low Security (%) 19 | 100 100 100 . 100 100 6 . . . . . . . 25 3 Level 1 8 | . . . . . . 7 . . . . . . . 74 11 Level 2 13 | . . . . . . 38 10 . . . . . . . 8 Level 3 38 | . . . . . . 28 89 32 100 . . . . . 46 Level 4 20 | . . . . . . 18 . 67 . . . . . . 30 Level 5 . | . . . . . . . . . . . . . . . . High Security . | . . . . . . . . . . . . . . . . Max Security . | . . . . . . . . . . . . . . . . Squads Dispatched 7 | . . . . 1 3 . 3 . . . . . . . . Investigation 1 | . . . . . 1 . . . . . . . . . . Extermination 1 | . . . . . . . 1 . . . . . . . . Reinforcement 2 | . . . . . 1 . 1 . . . . . . . . Assault 2 | . . . . 1 . . 1 . . . . . . . . Garrison 1 | . . . . . 1 . . . . . . . . . . Intercept . | . . . . . . . . . . . . . . . . Searches Triggered . | . . . . . . . . . . . . . . . . Construction Impeded . | . . . . . . . . . . . . . . . . Haulers Reinforced . | . . . . . . . . . . . . . . . . Active Scanning Responses . | . . . . . . . . . . . . . . . . Cargo Convoy Interrupts . | . . . . . . . . . . . . . . . . Stealth | -11 -10 -10 -10 -9 -8 -8 -7 -7 -7 -7 -7 -7 -6 -6 -6 --------- Run | Jun Mat Min Exi Min Mat Gar Fac Gar Fac Low Low Dat Pro Fac Gar Distress Signals 1 | . . . . . 1 . . . . . . . . . . Communications Jammed . | . . . . . . . . . . . . . . . . Distress Signals . | . . . . . . . . . . . . . . . . Times Spotted 207 | . . . . 11 8 45 24 32 . 7 13 . 7 3 57 Peak Tracking Total 10 | . . . . 5 7 4 4 6 . 5 4 . 3 2 10 Tactical Retreats 22 | . . . . . . 7 1 2 . 1 2 . . . 9 Traps | -11 -10 -10 -10 -9 -8 -8 -7 -7 -7 -7 -7 -7 -6 -6 -6 ------- Run | Jun Mat Min Exi Min Mat Gar Fac Gar Fac Low Low Dat Pro Fac Gar Traps Triggered 14 | . 1 1 . . 1 5 2 2 . . . . . . 2 Indirectly . | . . . . . . . . . . . . . . . . Trap Hack Attempts . | . . . . . . . . . . . . . . . . Triggered . | . . . . . . . . . . . . . . . . Disarmed . | . . . . . . . . . . . . . . . . Reprogrammed . | . . . . . . . . . . . . . . . . Reused . | . . . . . . . . . . . . . . . . Traps Extracted . | . . . . . . . . . . . . . . . . Installed . | . . . . . . . . . . . . . . . . Triggered 1 | . . . . . . . . . . . 1 . . . . Machines | -11 -10 -10 -10 -9 -8 -8 -7 -7 -7 -7 -7 -7 -6 -6 -6 ---------- Run | Jun Mat Min Exi Min Mat Gar Fac Gar Fac Low Low Dat Pro Fac Gar Machines Disabled 17 | . . . . . . 3 6 3 . 1 1 . 1 . 2 Max in Single Turn 2 | . . . . . . 2 1 1 . 1 1 . 1 . 1 Garrison Relay 2 | . . . . . . 1 . . . . . . . . 1 Phase Generator 1 | . . . . . . 1 . . . . . . . . . Machines Repaired . | . . . . . . . . . . . . . . . . Machines Sabotaged . | . . . . . . . . . . . . . . . . Overloaded Fab Kills . | . . . . . . . . . . . . . . . . Hacking | -11 -10 -10 -10 -9 -8 -8 -7 -7 -7 -7 -7 -7 -6 -6 -6 --------- Run | Jun Mat Min Exi Min Mat Gar Fac Gar Fac Low Low Dat Pro Fac Gar Machines Accessed 17 | . 2 1 . . 2 3 1 1 . . . 4 . 1 2 Terminals 9 | . 2 . . . 1 3 . 1 . . . . . . 2 Fabricators . | . . . . . . . . . . . . . . . . Repair Stations . | . . . . . . . . . . . . . . . . Recycling Units . | . . . . . . . . . . . . . . . . Scanalyzers . | . . . . . . . . . . . . . . . . Garrison Access 3 | . . . . . 1 . 1 . . . . . . 1 . Total Hacks 49 | . 3 1 . . 3 4 1 2 . . . 31 . 1 3 Successful 39 | . 1 1 . . 3 . 1 . . . . 31 . 1 1 Failed 10 | . 2 . . . . 4 . 2 . . . . . . 2 Catastrophic 4 | . 1 . . . . 1 . 1 . . . . . . 1 Database Lockouts . | . . . . . . . . . . . . . . . . Manual 9 | . 4 . . . 2 2 . . . . . . 1 . . Terminals 14 | . 3 . . . 2 4 . 2 . . . . . . 3 Fabricators . | . . . . . . . . . . . . . . . . Repair Stations . | . . . . . . . . . . . . . . . . Recycling Units . | . . . . . . . . . . . . . . . . Scanalyzers . | . . . . . . . . . . . . . . . . Garrison Access 3 | . . . . . 1 . 1 . . . . . . 1 . Terminal Hacks 35 | . . 1 . . 2 . . . . . . 31 . . 1 Record 11 | . . . . . . . . . . . . 11 . . . Part Schematic 11 | . . . . . . . . . . . . 11 . . . Robot Schematic 6 | . . . . . . . . . . . . 6 . . . Prototype ID Bank 3 | . . . . . . . . . . . . 3 . . . Open Door 1 | . . 1 . . . . . . . . . . . . . Emergency Access Points 1 | . . . . . . . . . . . . . . . 1 Terminal Index 1 | . . . . . 1 . . . . . . . . . . Zone Layout 1 | . . . . . 1 . . . . . . . . . . Fabricator Hacks . | . . . . . . . . . . . . . . . . Repair Station Hacks . | . . . . . . . . . . . . . . . . Recycling Unit Hacks . | . . . . . . . . . . . . . . . . Scanalyzer . | . . . . . . . . . . . . . . . . Garrison Access Hacks 3 | . . . . . 1 . 1 . . . . . . 1 . Unlock Access 3 | . . . . . 1 . 1 . . . . . . 1 . Unauthorized Hacks 1 | . 1 . . . . . . . . . . . . . . Terminals 1 | . 1 . . . . . . . . . . . . . . Botnet 1 | . 1 . . . . . . . . . . . . . . Fabricators . | . . . . . . . . . . . . . . . . Repair Stations . | . . . . . . . . . . . . . . . . Recycling Units . | . . . . . . . . . . . . . . . . Scanalyzers . | . . . . . . . . . . . . . . . . Garrison Access . | . . . . . . . . . . . . . . . . Data Cores Recovered 1 | . . . . . . . . . . . . . . 1 . Used . | . . . . . . . . . . . . . . . . Hacking Detections 11 | . 2 . . . 2 3 1 1 . . . . . 1 1 Full Trace Events 3 | . . . . . . 2 . 1 . . . . . . . Feedback Events . | . . . . . . . . . . . . . . . . Feedback Blocked . | . . . . . . . . . . . . . . . . Robot Schematics Acquired 6 | . . . . . . . . . . . . 6 . . . Robots Built . | . . . . . . . . . . . . . . . . Authchips . | . . . . . . . . . . . . . . . . Time . | . . . . . . . . . . . . . . . . Total Robot Build Rating . | . . . . . . . . . . . . . . . . Part Schematics Acquired 11 | . . . . . . . . . . . . 11 . . . Parts Built . | . . . . . . . . . . . . . . . . Authchips . | . . . . . . . . . . . . . . . . Time . | . . . . . . . . . . . . . . . . Total Part Build Rating . | . . . . . . . . . . . . . . . . Parts Repaired . | . . . . . . . . . . . . . . . . Time . | . . . . . . . . . . . . . . . . Parts Recycled . | . . . . . . . . . . . . . . . . Recycled Matter . | . . . . . . . . . . . . . . . . Retrieved Matter . | . . . . . . . . . . . . . . . . Retrieved Components . | . . . . . . . . . . . . . . . . Parts Scanalyzed . | . . . . . . . . . . . . . . . . Part Schematics Acquired . | . . . . . . . . . . . . . . . . Parts Damaged . | . . . . . . . . . . . . . . . . Bothacking | -11 -10 -10 -10 -9 -8 -8 -7 -7 -7 -7 -7 -7 -6 -6 -6 ------------ Run | Jun Mat Min Exi Min Mat Gar Fac Gar Fac Low Low Dat Pro Fac Gar Used RIF Installer 3 | . . . . . . 1 . 1 . . . . . . 1 Coupler Efficiency 1 | . . . . . . . . 1 . . . . . . . Signal Jammer 1 | . . . . . . . . . . . . . . . 1 Robots Hacked 3 | . . . . . . . . 1 . . . . . . 2 Non-combat . | . . . . . . . . . . . . . . . . Combat 3 | . . . . . . . . 1 . . . . . . 2 Robot Hacks Applied 3 | . . . . . . . . 1 . . . . . . 2 parse_system 2 | . . . . . . . . 1 . . . . . . 1 formatsys_high 1 | . . . . . . . . . . . . . . . 1 Relay Couplers Released 9 | . . . . . . 4 . . . . . . . . 5 Machine Destruction 9 | . . . . . . 4 . . . . . . . . 5 Attached 1 | . . . . . . . . . . . . . . . 1 Fabnet Peak Effective % . | . . . . . . . . . . . . . . . . Robots Rewired 7 | . . . . . . . . . . 1 3 . . . 3 Allies Hacked . | . . . . . . . . . . . . . . . . Hacks Repelled . | . . . . . . . . . . . . . . . . Allies | -11 -10 -10 -10 -9 -8 -8 -7 -7 -7 -7 -7 -7 -6 -6 -6 -------- Run | Jun Mat Min Exi Min Mat Gar Fac Gar Fac Low Low Dat Pro Fac Gar Total Allies 18 | . . . . 4 . . 3 2 . 1 3 . 1 . 4 Largest Group 4 | . . . . 4 2 . 3 4 . 1 3 3 4 4 4 Highest-Rated Group 222 | . . . . 71 47 . 93 222 . 20 60 60 156 156 167 Highest-Rated Ally 96 | . . . . 31 31 . 31 80 . 20 20 20 96 96 96 Total Orders 4 | . . . . . . . . . . . . . . . 4 STAY 2 | . . . . . . . . . . . . . . . 2 FOLLOW 2 | . . . . . . . . . . . . . . . 2 Ally Attacks 145 | . . . . 12 12 . 25 48 . 1 . . 8 3 36 Total Damage 4674 | . . . . 127 142 . 147 2531 . 26 . . 291 91 1319 Kills 36 | . . . . . 1 . 2 17 . 1 . . 4 2 9 Allies Corrupted . | . . . . . . . . . . . . . . . . Allies Melted 2 | . . . . . 1 . . 1 . . . . . . . Intel | -11 -10 -10 -10 -9 -8 -8 -7 -7 -7 -7 -7 -7 -6 -6 -6 ------- Run | Jun Mat Min Exi Min Mat Gar Fac Gar Fac Low Low Dat Pro Fac Gar Robot Analysis Total . | . . . . . . . . . . . . . . . . Derelict Logs Recovered 3 | . . 1 . 1 . . . . . . 1 . . . . Drone Launches . | . . . . . . . . . . . . . . . . Drone Recoveries . | . . . . . . . . . . . . . . . . Exploration | -11 -10 -10 -10 -9 -8 -8 -7 -7 -7 -7 -7 -7 -6 -6 -6 ------------- Run | Jun Mat Min Exi Min Mat Gar Fac Gar Fac Low Low Dat Pro Fac Gar Turns Passed 10047 | 58 58 435 428 419 145 1886 985 878 265 877 1071 181 388 347 1626 Spaces Moved 4774 | 45 58 401 390 331 90 809 334 313 107 314 429 110 214 187 642 Core 4 | 3 . . . . . . . . . . . . . . 1 Treads 2867 | . . . . . 1 242 334 313 107 314 429 110 214 187 616 Legs 48 | . . . . . . 23 . . . . . . . . 25 Wheels 1467 | 42 58 401 390 331 89 156 . . . . . . . . . Hover 388 | . . . . . . 388 . . . . . . . . . Flight . | . . . . . . . . . . . . . . . . Fastest Speed 50 | 50 95 95 110 110 110 110 250 250 250 250 165 165 165 160 90 Average Speed 178 | 86 95 101 110 110 111 182 253 250 250 250 222 165 165 163 181 Slowest Speed 330 | 95 95 110 110 110 160 300 330 250 250 250 330 165 165 165 320 Overloaded Moves . | . . . . . . . . . . . . . . . . Propulsion Burnouts . | . . . . . . . . . . . . . . . . Robots Hopped . | . . . . . . . . . . . . . . . . Cave-ins Triggered . | . . . . . . . . . . . . . . . . Exploration Rate (%) 44 | 4 11 82 87 71 12 82 12 43 5 53 57 79 49 7 54 Regions Visited 15 Branch Regions 7 Pre-discovered Areas 4 | . . 2 . 1 . . . . . . . 1 . . . Known Exits Taken 5 | . . . . . 1 . 1 . . . 1 . 1 1 . Unknown Exits Taken 8 | 1 1 1 1 1 . . . . 1 1 . 1 . . . Scrap Searched 7 | . . 1 . . . . . . . 4 1 . 1 . . Spaces Dug 22 | . . . . . . 18 . . . . 4 . . . . Terrain Destroyed 184 | . . . . . . 105 16 8 . 19 22 . 1 1 12 Melee . | . . . . . . . . . . . . . . . . Projectile 105 | . . . . . . 26 16 8 . 19 22 . 1 1 12 AOE 79 | . . . . . . 79 . . . . . . . . . Terrain Rammed . | . . . . . . . . . . . . . . . . Walls Destroyed . | . . . . . . . . . . . . . . . . Machines Disabled . | . . . . . . . . . . . . . . . . Actions | -11 -10 -10 -10 -9 -8 -8 -7 -7 -7 -7 -7 -7 -6 -6 -6 --------- Run | Jun Mat Min Exi Min Mat Gar Fac Gar Fac Low Low Dat Pro Fac Gar Total 5670 | 60 61 424 389 360 118 1036 409 357 108 372 496 110 232 216 922 Wait 236 | 6 . 12 . 13 10 28 13 10 . 17 11 1 7 13 95 Move 4762 | 44 57 400 389 330 90 808 334 312 106 313 428 109 213 187 642 Hop . | . . . . . . . . . . . . . . . . Pick Up 52 | 4 1 6 . 1 1 17 6 2 1 3 1 . 2 . 7 Fast Attach 56 | 6 1 2 . . 1 11 6 . . 1 . . . 6 22 Attach 28 | . . . . . 5 8 4 . . 3 2 . 1 1 4 Detach 12 | . 1 . . . . 3 2 . . . . . . 1 5 Swap 26 | . . . . . 3 9 1 3 . . . . . 1 9 Drop 47 | . 1 2 . 1 1 14 7 2 1 3 . . . 2 13 Fire 322 | . . 2 . 15 7 85 36 28 . 16 24 . 9 5 95 Melee 24 | . . . . . . 15 . . . . . . . . 9 Ram . | . . . . . . . . . . . . . . . . Kick . | . . . . . . . . . . . . . . . . Crush . | . . . . . . . . . . . . . . . . Escape Stasis 38 | . . . . . . 38 . . . . . . . . . Rewire 67 | . . . . . . . . . . 16 30 . . . 21 Trap . | . . . . . . . . . . . . . . . . Miscellaneous . | . . . . . . . . . . . . . . . . Route ------- -11/Junkyard -10/Materials -10/Mines (discovered 2 exits: [*Mat] / *Exi) -10/Exiles (discovered 2 exits: [*Min x2]) -9/Mines -8/Materials -8/Garrison (discovered 4 exits: *Fac x3 / [*Mat]) -7/Factory (discovered 2 exits: *Fac / Gar) -7/Garrison -7/Factory -7/Lower Caves -7/Lower Caves (discovered 2 exits: *Fac / *Dat) -7/Data Miner -6/Proximity Caves -6/Factory (discovered 2 exits: *Low / Gar) -6/Garrison (discovered 1 exit: *Fac) History --------- Turn | Location | Event 20 | -11/Junkyard | Discovered new exit (range 15) 59 | -11/Junkyard | Entered Materials 82 | -10/Materials | Discovered new exit (range 15) 117 | -10/Materials | Entered Mines 131 | -10/Mines | Learned location of Storage (-7) 170 | -10/Mines | A weapon hastily lodged in a ceiling crevice suddenly fell to the ground 300 | -10/Mines | Build established: Mutant 317 | -10/Mines | Met a Derelict who couldn't figure out how to use a Trap Extractor 523 | -10/Mines | Discovered new exit (range 15) 547 | -10/Mines | Deemed a non-threat by the Exiles lab entrance 548 | -10/Mines | Discovered new exit (range 5) 552 | -10/Mines | Entered Exiles 567 | -10/Exiles | Discovered new exit (range 15) 580 | -10/Exiles | Met 8R-AWN 598 | -10/Exiles | Met EX-HEX 634 | -10/Exiles | Met EX-BIN 710 | -10/Exiles | Met EX-DEC 788 | -10/Exiles | Visited The Gauntlet 967 | -10/Exiles | Discovered new exit (range 14) 980 | -10/Exiles | Entered Mines 1105 | -9/Mines | Received a Rocket Launcher from a helpful Derelict 1356 | -9/Mines | Discovered new exit (range 7) 1368 | -9/Mines | Assisted by bots powering up and referring to "LRC-V3" 1376 | -9/Mines | Met a Derelict testing a Signal Generator 1399 | -9/Mines | Entered Materials 1399 | -8/Materials | Accompanied by 2 allies 1399 | -8/Materials | Evolved 4 slots: Utility x3, Weapon x1 1489 | -8/Materials | Garrison activated, responded to threat 1544 | -8/Materials | Identified exit to Garrison 1544 | -8/Materials | Entered Garrison 1559 | -8/Garrison | Lost 4 parts (1p2n1u) 1565 | -8/Garrison | Triggered checkpoint 1672 | -8/Garrison | Triggered checkpoint 1707 | -8/Garrison | Destroyed 7 combat bots 1754 | -8/Garrison | Discovered new exit (range 11) 1787 | -8/Garrison | Triggered checkpoint 1794 | -8/Garrison | Build established: Gunner 1948 | -8/Garrison | Assembled breached garrison interior 2113 | -8/Garrison | Phase Generator disabled 2284 | -8/Garrison | Lost 4 parts (1p1n2w) 2531 | -8/Garrison | Discovered new exit (range 10) 2573 | -8/Garrison | Discovered new exit (range 6) 2611 | -8/Garrison | Installed Relay Interface Framework 2686 | -8/Garrison | Garrison Relay disabled 2720 | -8/Garrison | Lost 5 parts (1n1u3w) 3242 | -8/Garrison | Core integrity fell below 50% 3324 | -8/Garrison | Discovered new exit (range 12) 3430 | -8/Garrison | Entered Factory 3430 | -7/Factory | Evolved 2 slots: Utility x2 3687 | -7/Factory | Discovered new exit (range 10) 3830 | -7/Factory | First assault squad dispatched 4300 | -7/Factory | Allied Derelicts emerged from ambush trap array 4415 | -7/Factory | Identified exit to Garrison 4415 | -7/Factory | Entered Garrison 4415 | -7/Garrison | Accompanied by 2 allies 4511 | -7/Garrison | Found embedded Infiltrators 4522 | -7/Garrison | Triggered checkpoint 4665 | -7/Garrison | Triggered checkpoint 4674 | -7/Garrison | Triggered checkpoint 4719 | -7/Garrison | Triggered checkpoint 4828 | -7/Garrison | Discovered new exit (range 13) 4938 | -7/Garrison | Triggered checkpoint 5098 | -7/Garrison | Build established: Mutant 5171 | -7/Garrison | Expanded RIF knowledge: Coupler Efficiency 5293 | -7/Garrison | Entered Factory 5530 | -7/Factory | Discovered new exit (range 10) 5558 | -7/Factory | Entered Lower Caves 5917 | -7/Lower Caves | Build established: Gunner 6122 | -7/Lower Caves | Attracted the attention of an 0b10 outpost 6279 | -7/Lower Caves | Discovered new exit (range 18) 6435 | -7/Lower Caves | Entered another Lower Caves area 6565 | -7/Lower Caves | Discovered new exit (range 20) 6668 | -7/Lower Caves | Identified exit to Data Miner 6989 | -7/Lower Caves | Encountered a Warlord checkpoint 7349 | -7/Lower Caves | Build established: Mutant 7421 | -7/Lower Caves | Attacked by a delusional Derelict stockpiling Unaware 7506 | -7/Lower Caves | Entered Data Miner 7506 | -7/Data Miner | Accompanied by 3 allies 7506 | -7/Data Miner | Discovered new exit (range 6) 7531 | -7/Data Miner | Met Data Miner 7568 | -7/Data Miner | Learned location of Section 7 (-2) 7568 | -7/Data Miner | Acquired the access code to Warlord's prototype stash 7596 | -7/Data Miner | Received God Mode back door access code from Data Miner 7687 | -7/Data Miner | Entered Proximity Caves 7687 | -6/Proximity Caves | Accompanied by 3 allies 7815 | -6/Proximity Caves | Escorted by Enhanced Grunt 7855 | -6/Proximity Caves | Acquired the password to a Derelict Tinkerer's latest research 7877 | -6/Proximity Caves | Found Prototype Special Weapon 8053 | -6/Proximity Caves | Discovered new exit (range 14) 8073 | -6/Proximity Caves | Identified exit to Factory 8075 | -6/Proximity Caves | Entered Factory 8075 | -6/Factory | Accompanied by 4 allies 8075 | -6/Factory | Evolved 2 slots: Propulsion x1, Utility x1 8076 | -6/Factory | Identified Molecular Deconstructor 8186 | -6/Factory | Discovered new exit (range 15) 8207 | -6/Factory | Identified exit to Lower Caves 8421 | -6/Factory | Identified exit to Garrison 8422 | -6/Factory | Entered Garrison 8422 | -6/Garrison | Accompanied by 4 allies 8474 | -6/Garrison | Triggered checkpoint 8558 | -6/Garrison | Build established: Tank 8604 | -6/Garrison | Found Relay Coupler [Proto] 8667 | -6/Garrison | Triggered checkpoint 8791 | -6/Garrison | Triggered checkpoint 9040 | -6/Garrison | Triggered checkpoint 9079 | -6/Garrison | Discovered new exit (range 17) 9108 | -6/Garrison | Identified exit to Factory 9130 | -6/Garrison | Expanded RIF knowledge: Signal Jamming 9241 | -6/Garrison | Garrison Relay disabled 9354 | -6/Garrison | Spotted B-75 Beast 9354 | -6/Garrison | Spotted B-75 Beast 9565 | -6/Garrison | Lost 3 parts (2u1w) 9618 | -6/Garrison | Lost 3 parts (2n1u) 9905 | -6/Garrison | Build established: Bothacker-Mutant 9945 | -6/Garrison | Triggered checkpoint 10022 | -6/Garrison | Destroyed 7 combat bots 10024 | -6/Garrison | Lost 6 parts (1p1n3u1w) 10048 | -6/Garrison | Self-destructed Last Messages --------------- 09993_ Field strength at 20. 09993_ Adv. Heat Sink destroyed. 09993_ Y-54 Guardian Imp. Heat Sink blasted off. 09994_ Stasis field depleted. 09995_ Y-54 Guardian destroyed. 09998_ =:571CE KP:1H/BTNG3C69XPS|TCD 10015_ System corrupted: FCS attempts to trigger Hvy. Gauss Cannon. 10015_ System corrupted: Hvy. Gauss Cannon misfires. 10016_ Acquired Mic. Fission Core. 10018_ Acquired 96 matter. 10022_ Dropped Molecular Deconstructor. 10024_ Acquired Relay Coupler [Proto]. 10026_ Acquired Relay Coupler [NC]. 10028_ Acquired Hvy. Gauss Cannon. 10036_ Acquired 69 matter. 10037_ Acquired 59 matter. 10040_ Acquired Imp. Cooling System. 10048_ System corrupted: Matter fused (-10). Map ----- +----------------------------------------------------+ | #####![ #????! !?????????????????????????????##" | | ! #????! !?????????????????????????????# | | ##### #????! !?????????????????????????????## | | ##???## ##????# #????##### "#?????????????????## | | #?????# #?????# ????+[ "#????????????????### | | #?????# #?????# #????#%### "#???????????????##%% | | #?????# #?????# #????# #?????????????????????# + | | #?????#[#?????# #????# #?????????????????????## # | | +#????##"##???##"##???# #???????????????????????#" | | ??????# #???#=*%#???# #???????????????????????## | | ""##### [#####=%%##### #????????????????????????? | | =%! !%[ %=%[=!=#???????????????????????## | | ####################### #???????????????????????#" | | ??????????????????????# #???????????????????????#" | | ??????????????????????# #???????????????????????#" | | ??????????????????????# #???????????????????????#" | | ??????????????????????# #???????????????????????#" | | ??????????????????????#!#???????????????????????## | | ??????????????????????# #????????????????????????? | | ??????????????????????# #????????????????????????? | | ??????????????????????# #???????????????????????## | | ?????????????????????##*##??????????????????????# | | +?+????# ############]|%#########??????????????+ | | ????? %[%*^^! [ [ #??????????????# | | ????? %!*==%^![ /% #??????????????## | | ????? =*%^^ %!@*% #??????###+###### | | +?+????#++##### =##!##=;##### #??????# | | ??????????????# ??##?#%# #??# #??????# | | ??????????????##+?????#=###??# #??????# | | ??????????????????????#[###### #??????#^^ ###### | | ??????????+???????????# #??????#^^ #????? | | ??????????????????????#+###### #?????## #????? | | ?????????????????????????????# #?????#" = ###### | | ?????????????????????????????# #?????#"! " | | ?????????????????????????????# ######## / "##### | | ???????????????????????????### ## ## = ##???? | | ???????????????????????????# " ## [##%% ##???? | | ???????????????????????????### ^ %%* =!"##### | | ?????????????????????????????+ ^ == !=+!! | | ?????????????????????????????# ^ % *![= * | | ?????????????????????????????# ## "" % ###### | | ???????????????????????????### ## #" =!###??? | | ???????????????????????????+ % #??? | | ???????????????????????????# [% #??? | | ???????????????????????????# %= % #### | | ???????????????????????????+ ! % = " # | | ???????????????????????????### ## ## #### # | | ?????????????????????????????# ## ## ####"# | | ?????????????????????????????# | | ?????????????????????????????# | +----------------------------------------------------+ Best States ------------- Heat Dissipation 89 Energy Generation 21 Energy Capacity 325 Matter Stores 300 Matter Capacity 300 Sight Range 20 Terrain Scan Density 10 Armor Coverage 600 Resistance: EM 15 Weapon Cycling 15 Phase Shifting 5 Evasion (%) 52 Targeting Accuracy 8 Recoil Reduction 3 Kinecelleration 40 Relay Coupler Types 1 Relay Coupler Value 40 Item Schematics ----------------- Combat Drone Bay | -7/Data Miner | Free Lgt. Regenerative Plating | -7/Data Miner | Free Cld. Cesium-ion Thruster | -7/Data Miner | Free Thermal Defense Suite | -7/Data Miner | Free Imp. Heavy Machine Gun | -7/Data Miner | Free Nuclear Pulse Array | -7/Data Miner | Free Imp. Shock Absorption System | -7/Data Miner | Free Imp. Plasma Cutter | -7/Data Miner | Free Imp. Proton Missile Launcher | -7/Data Miner | Free Adv. Particle Charger | -7/Data Miner | Free Imp. Antigrav System | -7/Data Miner | Free Robot Schematics ------------------ S-27 Virus | -7/Data Miner | Free G-50 Soldier | -7/Data Miner | Free H-66 Slayer | -7/Data Miner | Free B-48 Gladiator | -7/Data Miner | Free B-60 Warrior | -7/Data Miner | Free E-15 Imp | -7/Data Miner | Free Fabricated ------------ Nothing Alien Tech Used ----------------- None Achievements -------------- None Challenges ------------ None Game ------ Seed EncryptedCoreSlayer Manual? 0 Play Time 01:10:53 Cumulative 163.6 hours Start 2023.03.11 @ 21:40:50 End 2023.03.12 @ 06:55:21 Sessions 5 Manual Loads 0 Difficulty Rogue Special Mode None Game No. 116 Rogue 114 Adventurer 2 Explorer 0 Win Type - Total 7 Types 4/0/1/2/0/0/0/0/0 Lore% 69 Gallery% 76 Achievement% 69 Wizard Run 0 Options --------- ASCII 0 Keyboard 1 Movement Numpad Keybinds 0 Fullscreen 1 Font 12/Smallcaps Map View 83x54 Tactical HUD 1 Map Filters NONE Filters NONE Steam 1 RUN: 0b9c8e51-7936-469b-aa55-9f7495b7ef7c